[Event "Titled Tuesday Blitz April 25 Early 2023"]
[White "Toktomushev, Teimur"]
[Black "Hartikainen, Jarmo"]
[WhiteFideId "14176726"]
[BlackFideId "503134"]
[WhiteElo "2116"]
[BlackElo "2160"]
[Result "1-0"]
[Round "06"]
[TimeControl "180+2"]
[Date "2023.04.25"]
[WhiteClock "0:00:06"]
[BlackClock "0:00:02"]

1. d4 {[%clk 0:02:55]}  Nf6 {[%clk 0:02:58]} 2. c4 {[%clk 0:02:55]}  g6 {[%clk 0:02:58]} 3. Nc3 {[%clk 0:02:54]}  d5 {[%clk 0:02:58]} 4. cxd5 {[%clk 0:02:54]}  Nxd5 {[%clk 0:02:59]} 5. e4 {[%clk 0:02:53]}  Nxc3 {[%clk 0:02:59]} 6. bxc3 {[%clk 0:02:54]}  Bg7 {[%clk 0:02:59]} 7. Be3 {[%clk 0:02:55]}  O-O {[%clk 0:02:59]} 8. Qd2 {[%clk 0:02:50]}  c5 {[%clk 0:02:59]} 9. Nf3 {[%clk 0:02:48]}  cxd4 {[%clk 0:02:57]} 10. cxd4 {[%clk 0:02:48]}  Nc6 {[%clk 0:02:55]} 11. Rc1 {[%clk 0:02:48]}  Bg4 {[%clk 0:02:54]} 12. d5 {[%clk 0:02:46]}  Bxf3 {[%clk 0:02:24]} 13. gxf3 {[%clk 0:02:45]}  Ne5 {[%clk 0:02:14]} 14. Be2 {[%clk 0:02:44]}  f5 {[%clk 0:01:50]} 15. f4 {[%clk 0:02:32]}  Ng4 {[%clk 0:01:47]} 16. Bxg4 {[%clk 0:02:08]}  fxg4 {[%clk 0:01:48]} 17. O-O {[%clk 0:01:48]}  Rc8 {[%clk 0:01:20]} 18. Rxc8 {[%clk 0:01:34]}  Qxc8 {[%clk 0:01:18]} 19. Rc1 {[%clk 0:01:35]}  Qb8 {[%clk 0:01:14]} 20. e5 {[%clk 0:01:14]}  b5 {[%clk 0:00:57]} 21. Qb4 {[%clk 0:01:02]}  Qb7 {[%clk 0:00:51]} 22. Rc6 {[%clk 0:00:58]}  a6 {[%clk 0:00:40]} 23. Qc5 {[%clk 0:00:49]}  Qd7 {[%clk 0:00:15]} 24. Rc7 {[%clk 0:00:10]}  Qf5 {[%clk 0:00:13]} 25. Qxe7 {[%clk 0:00:10]}  Rf7 {[%clk 0:00:13]} 26. Qxf7+ {[%clk 0:00:06]}  Qxf7 {[%clk 0:00:13]} 27. Rxf7 {[%clk 0:00:06]}  Kxf7 {[%clk 0:00:13]} 28. Kf1 {[%clk 0:00:05]}  Bf8 {[%clk 0:00:14]} 29. Ke2 {[%clk 0:00:05]}  Bb4 {[%clk 0:00:14]} 30. Kd3 {[%clk 0:00:04]}  h5 {[%clk 0:00:13]} 31. Ke4 {[%clk 0:00:04]}  Be1 {[%clk 0:00:12]} 32. f5 {[%clk 0:00:03]}  a5 {[%clk 0:00:13]} 33. e6+ {[%clk 0:00:03]}  Ke8 {[%clk 0:00:10]} 34. fxg6 {[%clk 0:00:03]}  Bc3 {[%clk 0:00:08]} 35. d6 {[%clk 0:00:03]}  b4 {[%clk 0:00:06]} 36. d7+ {[%clk 0:00:03]}  Kd8 {[%clk 0:00:06]} 37. Bg5+ {[%clk 0:00:03]}  Bf6 {[%clk 0:00:04]} 38. Bxf6+ {[%clk 0:00:03]}  Kc7 {[%clk 0:00:05]} 39. d8=Q+ {[%clk 0:00:04]}  Kc6 {[%clk 0:00:05]} 40. e7 {[%clk 0:00:04]}  Kc5 {[%clk 0:00:05]} 41. e8=Q {[%clk 0:00:05]}  Kc4 {[%clk 0:00:05]} 42. Qxa5 {[%clk 0:00:06]}  h4 {[%clk 0:00:02]} 43. Qeb5# {[%clk 0:00:06]} 1-0


[Site "https://www.chess.com"]

[Event "Titled Tuesday Blitz April 25 Early 2023"]
[White "Tokman, Ariel"]
[Black "Rudzinska, Michalina"]
[WhiteFideId "117420"]
[BlackFideId "1172883"]
[WhiteElo "2263"]
[BlackElo "2219"]
[Result "1-0"]
[Round "06"]
[TimeControl "180+2"]
[Date "2023.04.25"]
[WhiteClock "0:00:48"]
[BlackClock "0:00:04"]

1. c4 {[%clk 0:03:00]}  e5 {[%clk 0:02:49]} 2. Nf3 {[%clk 0:03:00]}  Nc6 {[%clk 0:02:49]} 3. Nc3 {[%clk 0:02:58]}  g6 {[%clk 0:02:49]} 4. d3 {[%clk 0:02:58]}  Bg7 {[%clk 0:02:49]} 5. g3 {[%clk 0:02:59]}  d6 {[%clk 0:02:50]} 6. Bg2 {[%clk 0:03:00]}  Nge7 {[%clk 0:02:50]} 7. O-O {[%clk 0:03:01]}  O-O {[%clk 0:02:51]} 8. Rb1 {[%clk 0:03:01]}  a5 {[%clk 0:02:48]} 9. a3 {[%clk 0:03:00]}  f5 {[%clk 0:02:48]} 10. Qc2 {[%clk 0:03:00]}  h6 {[%clk 0:02:45]} 11. b4 {[%clk 0:03:01]}  axb4 {[%clk 0:02:45]} 12. axb4 {[%clk 0:03:02]}  Be6 {[%clk 0:02:45]} 13. b5 {[%clk 0:03:01]}  Na5 {[%clk 0:02:38]} 14. Nd2 {[%clk 0:03:00]}  c6 {[%clk 0:02:32]} 15. bxc6 {[%clk 0:03:01]}  bxc6 {[%clk 0:02:33]} 16. Bb2 {[%clk 0:02:55]}  d5 {[%clk 0:02:32]} 17. Na4 {[%clk 0:02:44]}  Qd6 {[%clk 0:02:22]} 18. Ra1 {[%clk 0:02:37]}  Rfb8 {[%clk 0:02:06]} 19. Ba3 {[%clk 0:02:35]}  Qc7 {[%clk 0:02:01]} 20. cxd5 {[%clk 0:02:29]}  Bxd5 {[%clk 0:01:55]} 21. e4 {[%clk 0:02:22]}  Bb3 {[%clk 0:01:48]} 22. Nxb3 {[%clk 0:02:22]}  Nxb3 {[%clk 0:01:49]} 23. Rab1 {[%clk 0:02:09]}  Nd4 {[%clk 0:01:41]} 24. Qc4+ {[%clk 0:02:09]}  Kh8 {[%clk 0:01:40]} 25. Bc5 {[%clk 0:01:59]}  Rb5 {[%clk 0:01:30]} 26. Bxd4 {[%clk 0:01:54]}  Rxb1 {[%clk 0:01:29]} 27. Rxb1 {[%clk 0:01:54]}  exd4 {[%clk 0:01:29]} 28. exf5 {[%clk 0:01:51]}  gxf5 {[%clk 0:01:26]} 29. Nc5 {[%clk 0:01:51]}  Qd6 {[%clk 0:01:19]} 30. Ne6 {[%clk 0:01:44]}  Rc8 {[%clk 0:01:11]} 31. Rb7 {[%clk 0:01:41]}  Bf6 {[%clk 0:01:06]} 32. Nf4 {[%clk 0:01:39]}  c5 {[%clk 0:01:00]} 33. Qf7 {[%clk 0:01:32]}  Rg8 {[%clk 0:00:45]} 34. Bd5 {[%clk 0:01:23]}  Rg7 {[%clk 0:00:29]} 35. Qf8+ {[%clk 0:01:11]}  Kh7 {[%clk 0:00:27]} 36. Nh5 {[%clk 0:00:49]}  Qxd5 {[%clk 0:00:04]} 37. Nxf6+ {[%clk 0:00:48]} 1-0


[Site "https://www.chess.com"]

[Event "Titled Tuesday Blitz April 25 Early 2023"]
[White "Itkis, Boris"]
[Black "Ordekalog"]
[WhiteFideId "1209167"]
[WhiteElo "2216"]
[BlackElo "2483"]
[Result "1/2-1/2"]
[Round "06"]
[TimeControl "180+2"]
[Date "2023.04.25"]
[WhiteClock "0:00:03"]
[BlackClock "0:00:02"]

1. c4 {[%clk 0:03:00]}  e6 {[%clk 0:02:57]} 2. Nf3 {[%clk 0:02:59]}  d5 {[%clk 0:02:57]} 3. b3 {[%clk 0:02:59]}  Nf6 {[%clk 0:02:56]} 4. g3 {[%clk 0:02:59]}  c5 {[%clk 0:02:56]} 5. Bg2 {[%clk 0:02:58]}  Nc6 {[%clk 0:02:55]} 6. O-O {[%clk 0:02:59]}  Be7 {[%clk 0:02:55]} 7. e3 {[%clk 0:02:57]}  O-O {[%clk 0:02:51]} 8. Qe2 {[%clk 0:02:53]}  b6 {[%clk 0:02:46]} 9. Bb2 {[%clk 0:02:53]}  Bb7 {[%clk 0:02:44]} 10. d3 {[%clk 0:02:50]}  a5 {[%clk 0:02:39]} 11. Ne1 {[%clk 0:02:47]}  a4 {[%clk 0:02:38]} 12. f4 {[%clk 0:02:46]}  axb3 {[%clk 0:02:27]} 13. axb3 {[%clk 0:02:47]}  Nb4 {[%clk 0:02:26]} 14. g4 {[%clk 0:02:42]}  Rxa1 {[%clk 0:02:23]} 15. Bxa1 {[%clk 0:02:42]}  Qa8 {[%clk 0:02:21]} 16. Bc3 {[%clk 0:02:31]}  Rd8 {[%clk 0:01:47]} 17. g5 {[%clk 0:02:15]}  Ne8 {[%clk 0:01:46]} 18. h4 {[%clk 0:01:53]}  dxc4 {[%clk 0:01:44]} 19. dxc4 {[%clk 0:01:29]}  Nd6 {[%clk 0:01:28]} 20. Bxb7 {[%clk 0:01:21]}  Qxb7 {[%clk 0:01:28]} 21. Nf3 {[%clk 0:01:15]}  Ne4 {[%clk 0:01:21]} 22. Rd1 {[%clk 0:01:12]}  Ng3 {[%clk 0:00:41]} 23. Rxd8+ {[%clk 0:01:03]}  Bxd8 {[%clk 0:00:42]} 24. Qd1 {[%clk 0:00:57]}  Be7 {[%clk 0:00:40]} 25. Bxb4 {[%clk 0:00:41]}  cxb4 {[%clk 0:00:40]} 26. Nbd2 {[%clk 0:00:42]}  Bc5 {[%clk 0:00:32]} 27. Qe1 {[%clk 0:00:37]}  Ne4 {[%clk 0:00:28]} 28. Nxe4 {[%clk 0:00:21]}  Qxe4 {[%clk 0:00:28]} 29. Kf2 {[%clk 0:00:21]}  Qxf4 {[%clk 0:00:26]} 30. Qd2 {[%clk 0:00:17]}  Qf5 {[%clk 0:00:22]} 31. Qd8+ {[%clk 0:00:15]}  Bf8 {[%clk 0:00:22]} 32. Qxb6 {[%clk 0:00:15]}  Qc2+ {[%clk 0:00:20]} 33. Kg3 {[%clk 0:00:13]}  Qxb3 {[%clk 0:00:20]} 34. c5 {[%clk 0:00:14]}  Qxe3 {[%clk 0:00:19]} 35. Qxb4 {[%clk 0:00:13]}  Qxc5 {[%clk 0:00:19]} 36. Qe4 {[%clk 0:00:11]}  g6 {[%clk 0:00:15]} 37. h5 {[%clk 0:00:09]}  gxh5 {[%clk 0:00:15]} 38. Kh4 {[%clk 0:00:07]}  Qd5 {[%clk 0:00:07]} 39. Qf4 {[%clk 0:00:05]}  Bg7 {[%clk 0:00:06]} 40. Kxh5 {[%clk 0:00:04]}  Qd8 {[%clk 0:00:05]} 41. Ne5 {[%clk 0:00:03]}  Bxe5 {[%clk 0:00:05]} 42. Qxe5 {[%clk 0:00:04]}  Qf8 {[%clk 0:00:04]} 43. Kg4 {[%clk 0:00:01]}  Qe8 {[%clk 0:00:04]} 44. Qf6 {[%clk 0:00:01]}  Qc8 {[%clk 0:00:04]} 45. Kh5 {[%clk 0:00:01]}  Qf8 {[%clk 0:00:04]} 46. Qe5 {[%clk 0:00:01]}  Qe8 {[%clk 0:00:02]} 47. Kg4 {[%clk 0:00:02]}  Qe7 {[%clk 0:00:02]} 48. Kh5 {[%clk 0:00:02]}  Qf8 {[%clk 0:00:02]} 49. Kg4 {[%clk 0:00:02]}  Qg7 {[%clk 0:00:01]} 50. Qb8+ {[%clk 0:00:02]}  Qf8 {[%clk 0:00:02]} 51. Qe5 {[%clk 0:00:03]} 1/2-1/2


[Site "https://www.chess.com"]

[Event "Titled Tuesday Blitz April 25 Early 2023"]
[White "Omariev, Maksim"]
[Black "Ramirez, Maria Eugenia"]
[WhiteFideId "4193423"]
[BlackFideId "3301680"]
[WhiteElo "2418"]
[BlackElo "1842"]
[Result "1/2-1/2"]
[Round "06"]
[TimeControl "180+2"]
[Date "2023.04.25"]
[WhiteClock "0:00:04"]
[BlackClock "0:00:05"]

1. g4 {[%clk 0:03:00]}  d5 {[%clk 0:02:59]} 2. Bg2 {[%clk 0:03:00]}  e5 {[%clk 0:02:58]} 3. d4 {[%clk 0:03:00]}  e4 {[%clk 0:02:55]} 4. g5 {[%clk 0:02:53]}  Be7 {[%clk 0:02:50]} 5. h4 {[%clk 0:02:52]}  Nc6 {[%clk 0:02:47]} 6. c4 {[%clk 0:02:52]}  Be6 {[%clk 0:02:45]} 7. Nc3 {[%clk 0:02:52]}  Bb4 {[%clk 0:02:42]} 8. Nh3 {[%clk 0:02:33]}  dxc4 {[%clk 0:02:41]} 9. Be3 {[%clk 0:02:26]}  Nge7 {[%clk 0:02:20]} 10. Nf4 {[%clk 0:02:25]}  Nd5 {[%clk 0:02:16]} 11. Nxe6 {[%clk 0:01:38]}  Nxc3 {[%clk 0:02:09]} 12. bxc3 {[%clk 0:00:30]}  Bxc3+ {[%clk 0:02:07]} 13. Bd2 {[%clk 0:00:31]}  Bxd2+ {[%clk 0:02:03]} 14. Qxd2 {[%clk 0:00:31]}  fxe6 {[%clk 0:02:03]} 15. Bxe4 {[%clk 0:00:23]}  Nxd4 {[%clk 0:01:52]} 16. Bxb7 {[%clk 0:00:14]}  Rb8 {[%clk 0:01:52]} 17. Be4 {[%clk 0:00:11]}  O-O {[%clk 0:01:48]} 18. Rd1 {[%clk 0:00:09]}  c5 {[%clk 0:01:44]} 19. Qc3 {[%clk 0:00:07]}  Qc7 {[%clk 0:01:29]} 20. Qxc4 {[%clk 0:00:06]}  Qe5 {[%clk 0:01:29]} 21. Bd3 {[%clk 0:00:02]}  Rf4 {[%clk 0:01:15]} 22. Qc1 {[%clk 0:00:02]}  Rbf8 {[%clk 0:01:09]} 23. Qe3 {[%clk 0:00:02]}  Qd6 {[%clk 0:01:02]} 24. h5 {[%clk 0:00:02]}  Rxf2 {[%clk 0:00:58]} 25. h6 {[%clk 0:00:02]}  g6 {[%clk 0:00:52]} 26. Kd2 {[%clk 0:00:02]}  c4 {[%clk 0:00:44]} 27. Kc3 {[%clk 0:00:02]}  cxd3 {[%clk 0:00:41]} 28. Qxd4 {[%clk 0:00:02]}  Qxd4+ {[%clk 0:00:34]} 29. Kxd4 {[%clk 0:00:03]}  dxe2 {[%clk 0:00:34]} 30. Rde1 {[%clk 0:00:03]}  R8f5 {[%clk 0:00:29]} 31. Ke3 {[%clk 0:00:03]}  Kf7 {[%clk 0:00:27]} 32. Rxe2 {[%clk 0:00:02]}  Rxe2+ {[%clk 0:00:26]} 33. Kxe2 {[%clk 0:00:03]}  Rxg5 {[%clk 0:00:27]} 34. Rb1 {[%clk 0:00:02]}  Rg2+ {[%clk 0:00:26]} 35. Kf3 {[%clk 0:00:01]}  Rxa2 {[%clk 0:00:27]} 36. Rb7+ {[%clk 0:00:02]}  Kf6 {[%clk 0:00:20]} 37. Rxh7 {[%clk 0:00:02]}  Rh2 {[%clk 0:00:17]} 38. Kg3 {[%clk 0:00:02]}  Rh1 {[%clk 0:00:17]} 39. Kg2 {[%clk 0:00:02]}  Rh5 {[%clk 0:00:17]} 40. Kg3 {[%clk 0:00:02]}  a5 {[%clk 0:00:17]} 41. Rh8 {[%clk 0:00:02]}  a4 {[%clk 0:00:15]} 42. Kf4 {[%clk 0:00:03]}  Rh4+ {[%clk 0:00:15]} 43. Kg3 {[%clk 0:00:03]}  g5 {[%clk 0:00:14]} 44. h7 {[%clk 0:00:01]}  Kg7 {[%clk 0:00:13]} 45. Rg8+ {[%clk 0:00:02]}  Kxh7 {[%clk 0:00:08]} 46. Rxg5 {[%clk 0:00:03]}  Re4 {[%clk 0:00:08]} 47. Ra5 {[%clk 0:00:03]}  Kg6 {[%clk 0:00:07]} 48. Kf3 {[%clk 0:00:04]}  Rb4 {[%clk 0:00:05]} 49. Ke3 {[%clk 0:00:04]}  Kf6 {[%clk 0:00:05]} 50. Kd3 {[%clk 0:00:04]}  e5 {[%clk 0:00:06]} 51. Kc3 {[%clk 0:00:04]}  Rd4 {[%clk 0:00:06]} 52. Ra8 {[%clk 0:00:03]}  Kf5 {[%clk 0:00:06]} 53. Rh8 {[%clk 0:00:03]}  Ke4 {[%clk 0:00:05]} 54. Rh4+ {[%clk 0:00:04]}  Kd5 {[%clk 0:00:06]} 55. Rh8 {[%clk 0:00:03]}  Rc4+ {[%clk 0:00:06]} 56. Kd3 {[%clk 0:00:02]}  Rb4 {[%clk 0:00:05]} 57. Rd8+ {[%clk 0:00:02]}  Ke6 {[%clk 0:00:05]} 58. Re8+ {[%clk 0:00:03]}  Kf5 {[%clk 0:00:05]} 59. Rf8+ {[%clk 0:00:03]}  Ke6 {[%clk 0:00:06]} 60. Re8+ {[%clk 0:00:04]}  Kd6 {[%clk 0:00:06]} 61. Rd8+ {[%clk 0:00:04]}  Ke7 {[%clk 0:00:06]} 62. Ra8 {[%clk 0:00:04]}  Kf6 {[%clk 0:00:05]} 63. Rf8+ {[%clk 0:00:04]}  Ke6 {[%clk 0:00:05]} 64. Re8+ {[%clk 0:00:04]} 1/2-1/2


[Site "https://www.chess.com"]

[Event "Titled Tuesday Blitz April 25 Early 2023"]
[White "Orujov2008"]
[Black "mjelcic"]
[WhiteElo "2404"]
[BlackElo "2213"]
[Result "1-0"]
[Round "06"]
[TimeControl "180+2"]
[Date "2023.04.25"]
[WhiteClock "0:00:11"]
[BlackClock "0:00:06"]

1. e4 {[%clk 0:03:00]}  g6 {[%clk 0:02:58]} 2. d4 {[%clk 0:03:00]}  Bg7 {[%clk 0:02:58]} 3. Nc3 {[%clk 0:03:01]}  d6 {[%clk 0:02:56]} 4. Nf3 {[%clk 0:03:01]}  a6 {[%clk 0:02:56]} 5. Be3 {[%clk 0:03:01]}  Nd7 {[%clk 0:02:56]} 6. h4 {[%clk 0:03:01]}  h5 {[%clk 0:02:56]} 7. a4 {[%clk 0:02:57]}  Ngf6 {[%clk 0:02:56]} 8. Ng5 {[%clk 0:02:55]}  Ng4 {[%clk 0:02:54]} 9. Be2 {[%clk 0:02:47]}  Nxe3 {[%clk 0:02:54]} 10. fxe3 {[%clk 0:02:47]}  c5 {[%clk 0:02:48]} 11. Qd2 {[%clk 0:02:44]}  O-O {[%clk 0:02:47]} 12. O-O-O {[%clk 0:02:41]}  b5 {[%clk 0:02:46]} 13. g4 {[%clk 0:02:39]}  cxd4 {[%clk 0:02:34]} 14. exd4 {[%clk 0:02:39]}  b4 {[%clk 0:02:32]} 15. Nd5 {[%clk 0:02:38]}  e6 {[%clk 0:02:31]} 16. Nf4 {[%clk 0:02:30]}  e5 {[%clk 0:02:27]} 17. Nd5 {[%clk 0:02:20]}  exd4 {[%clk 0:02:22]} 18. gxh5 {[%clk 0:02:20]}  Nf6 {[%clk 0:02:15]} 19. hxg6 {[%clk 0:02:10]}  fxg6 {[%clk 0:02:10]} 20. Nxf6+ {[%clk 0:02:07]}  Bxf6 {[%clk 0:02:05]} 21. Bc4+ {[%clk 0:02:08]}  Kg7 {[%clk 0:02:05]} 22. Rdg1 {[%clk 0:02:04]}  Qc7 {[%clk 0:01:50]} 23. Bb3 {[%clk 0:01:54]}  Be5 {[%clk 0:01:31]} 24. Kb1 {[%clk 0:01:46]}  Bd7 {[%clk 0:01:23]} 25. h5 {[%clk 0:01:44]}  Rf6 {[%clk 0:01:10]} 26. hxg6 {[%clk 0:01:15]}  Rh8 {[%clk 0:01:10]} 27. Rxh8 {[%clk 0:01:14]}  Kxh8 {[%clk 0:01:10]} 28. Rh1+ {[%clk 0:01:15]}  Kg7 {[%clk 0:01:06]} 29. Rh7+ {[%clk 0:01:15]}  Kxg6 {[%clk 0:01:00]} 30. Bf7+ {[%clk 0:00:56]}  Rxf7 {[%clk 0:00:57]} 31. Rxf7 {[%clk 0:00:57]}  Qd8 {[%clk 0:00:46]} 32. Qf2 {[%clk 0:00:28]}  Qxg5 {[%clk 0:00:13]} 33. Rxd7 {[%clk 0:00:26]}  Bf4 {[%clk 0:00:10]} 34. Qf1 {[%clk 0:00:18]}  d3 {[%clk 0:00:08]} 35. cxd3 {[%clk 0:00:17]}  a5 {[%clk 0:00:07]} 36. Qh1 {[%clk 0:00:17]}  Kf6 {[%clk 0:00:04]} 37. Qh7 {[%clk 0:00:11]}  Ke6 {[%clk 0:00:04]} 38. Qf7+ {[%clk 0:00:10]}  Ke5 {[%clk 0:00:05]} 39. Qd5+ {[%clk 0:00:09]}  Kf6 {[%clk 0:00:05]} 40. Qxg5+ {[%clk 0:00:09]}  Kxg5 {[%clk 0:00:06]} 41. Ra7 {[%clk 0:00:09]}  Kf6 {[%clk 0:00:05]} 42. Rxa5 {[%clk 0:00:10]}  Ke6 {[%clk 0:00:05]} 43. Rb5 {[%clk 0:00:10]}  Bd2 {[%clk 0:00:05]} 44. a5 {[%clk 0:00:11]}  b3 {[%clk 0:00:06]} 45. a6 {[%clk 0:00:11]}  d5 {[%clk 0:00:05]} 46. a7 {[%clk 0:00:11]}  dxe4 {[%clk 0:00:06]} 47. dxe4 {[%clk 0:00:11]} 1-0


[Site "https://www.chess.com"]

[Event "Titled Tuesday Blitz April 25 Early 2023"]
[White "Winkels, Marcel"]
[Black "Matveeva, Olga"]
[WhiteFideId "1003887"]
[BlackFideId "24107018"]
[WhiteElo "1900"]
[BlackElo "2056"]
[Result "0-1"]
[Round "06"]
[TimeControl "180+2"]
[Date "2023.04.25"]
[WhiteClock "0:00:01"]
[BlackClock "0:00:08"]

1. d4 {[%clk 0:03:00]}  Nf6 {[%clk 0:02:58]} 2. Nc3 {[%clk 0:02:58]}  d5 {[%clk 0:02:56]} 3. Bf4 {[%clk 0:02:57]}  c6 {[%clk 0:02:54]} 4. e3 {[%clk 0:02:56]}  e6 {[%clk 0:02:52]} 5. Nf3 {[%clk 0:02:55]}  Nbd7 {[%clk 0:02:52]} 6. Ne5 {[%clk 0:02:54]}  Be7 {[%clk 0:02:51]} 7. Bd3 {[%clk 0:02:53]}  Nxe5 {[%clk 0:02:50]} 8. Bxe5 {[%clk 0:02:44]}  O-O {[%clk 0:02:23]} 9. h4 {[%clk 0:02:39]}  Nd7 {[%clk 0:02:17]} 10. Qh5 {[%clk 0:02:32]}  g6 {[%clk 0:02:16]} 11. Qh6 {[%clk 0:02:28]}  Nxe5 {[%clk 0:02:10]} 12. dxe5 {[%clk 0:02:26]}  Re8 {[%clk 0:02:06]} 13. h5 {[%clk 0:02:25]}  Bf8 {[%clk 0:02:06]} 14. Qf4 {[%clk 0:02:24]}  Bg7 {[%clk 0:01:47]} 15. O-O-O {[%clk 0:02:07]}  Qc7 {[%clk 0:01:35]} 16. hxg6 {[%clk 0:02:04]}  hxg6 {[%clk 0:01:33]} 17. Qh2 {[%clk 0:01:49]}  Qxe5 {[%clk 0:01:30]} 18. Qh7+ {[%clk 0:01:49]}  Kf8 {[%clk 0:01:30]} 19. Rh3 {[%clk 0:01:47]}  Ke7 {[%clk 0:01:07]} 20. Qh4+ {[%clk 0:01:36]}  Qf6 {[%clk 0:01:06]} 21. Qg3 {[%clk 0:01:29]}  Bd7 {[%clk 0:00:59]} 22. Rdh1 {[%clk 0:01:11]}  Rh8 {[%clk 0:00:57]} 23. Qc7 {[%clk 0:01:03]}  b5 {[%clk 0:00:48]} 24. Rxh8 {[%clk 0:00:28]}  Rxh8 {[%clk 0:00:47]} 25. Rxh8 {[%clk 0:00:28]}  Bxh8 {[%clk 0:00:46]} 26. Qxa7 {[%clk 0:00:29]}  Qxf2 {[%clk 0:00:40]} 27. Qc5+ {[%clk 0:00:19]}  Ke8 {[%clk 0:00:39]} 28. b3 {[%clk 0:00:13]}  Qe1+ {[%clk 0:00:37]} 29. Kb2 {[%clk 0:00:12]}  Bf6 {[%clk 0:00:23]} 30. a3 {[%clk 0:00:11]}  Qd2 {[%clk 0:00:16]} 31. b4 {[%clk 0:00:09]}  Bxc3+ {[%clk 0:00:12]} 32. Qxc3 {[%clk 0:00:08]}  Qxc3+ {[%clk 0:00:12]} 33. Kxc3 {[%clk 0:00:08]}  e5 {[%clk 0:00:12]} 34. Be2 {[%clk 0:00:05]}  Ke7 {[%clk 0:00:12]} 35. Bf3 {[%clk 0:00:04]}  Kd6 {[%clk 0:00:12]} 36. Kd3 {[%clk 0:00:03]}  c5 {[%clk 0:00:12]} 37. Kd2 {[%clk 0:00:03]}  e4 {[%clk 0:00:10]} 38. Be2 {[%clk 0:00:03]}  d4 {[%clk 0:00:10]} 39. Bd1 {[%clk 0:00:01]}  Kd5 {[%clk 0:00:08]} 40. Be2 {[%clk 0:00:01]}  c4 {[%clk 0:00:08]} 0-1


[Site "https://www.chess.com"]

[Event "Titled Tuesday Blitz April 25 Early 2023"]
[White "White, John S."]
[Black "Buscar, Michael"]
[WhiteFideId "2502348"]
[BlackFideId "2603616"]
[WhiteElo "1999"]
[BlackElo "2010"]
[Result "0-1"]
[Round "06"]
[TimeControl "180+2"]
[Date "2023.04.25"]
[WhiteClock "0:00:03"]
[BlackClock "0:00:49"]

1. e4 {[%clk 0:03:00]}  c5 {[%clk 0:02:59]} 2. Nf3 {[%clk 0:03:00]}  Nc6 {[%clk 0:03:00]} 3. d4 {[%clk 0:03:01]}  cxd4 {[%clk 0:03:01]} 4. Nxd4 {[%clk 0:03:01]}  Nf6 {[%clk 0:03:02]} 5. Nc3 {[%clk 0:03:01]}  e5 {[%clk 0:03:02]} 6. Ndb5 {[%clk 0:03:01]}  h6 {[%clk 0:03:03]} 7. Be3 {[%clk 0:02:53]}  d6 {[%clk 0:03:01]} 8. f3 {[%clk 0:02:50]}  Be6 {[%clk 0:02:59]} 9. Na3 {[%clk 0:02:45]}  d5 {[%clk 0:02:56]} 10. exd5 {[%clk 0:02:42]}  Nxd5 {[%clk 0:02:55]} 11. Nxd5 {[%clk 0:02:38]}  Bxd5 {[%clk 0:02:48]} 12. Nb5 {[%clk 0:02:34]}  Rc8 {[%clk 0:02:26]} 13. Nc3 {[%clk 0:02:07]}  Bb4 {[%clk 0:02:12]} 14. Bd2 {[%clk 0:01:52]}  Be6 {[%clk 0:02:10]} 15. a3 {[%clk 0:01:41]}  Ba5 {[%clk 0:02:04]} 16. Bb5 {[%clk 0:01:31]}  O-O {[%clk 0:02:01]} 17. Ne4 {[%clk 0:01:22]}  Bb6 {[%clk 0:01:52]} 18. Bc3 {[%clk 0:01:06]}  Nd4 {[%clk 0:01:48]} 19. Bxd4 {[%clk 0:01:01]}  Bxd4 {[%clk 0:01:46]} 20. c3 {[%clk 0:01:02]}  Bb6 {[%clk 0:01:37]} 21. Qxd8 {[%clk 0:00:44]}  Rfxd8 {[%clk 0:01:31]} 22. Rd1 {[%clk 0:00:43]}  Bb3 {[%clk 0:01:31]} 23. Rxd8+ {[%clk 0:00:40]}  Rxd8 {[%clk 0:01:32]} 24. Ke2 {[%clk 0:00:40]}  f5 {[%clk 0:01:26]} 25. Nd2 {[%clk 0:00:34]}  Be6 {[%clk 0:01:18]} 26. Bc4 {[%clk 0:00:31]}  Rxd2+ {[%clk 0:01:17]} 27. Kxd2 {[%clk 0:00:29]}  Bxc4 {[%clk 0:01:18]} 28. Re1 {[%clk 0:00:28]}  Bc7 {[%clk 0:01:14]} 29. b4 {[%clk 0:00:25]}  b5 {[%clk 0:01:10]} 30. Kc2 {[%clk 0:00:22]}  Kf7 {[%clk 0:01:09]} 31. Rd1 {[%clk 0:00:22]}  Ke7 {[%clk 0:01:06]} 32. Re1 {[%clk 0:00:19]}  g5 {[%clk 0:01:04]} 33. g3 {[%clk 0:00:18]}  Ke6 {[%clk 0:01:01]} 34. Re3 {[%clk 0:00:17]}  a5 {[%clk 0:01:00]} 35. f4 {[%clk 0:00:14]}  gxf4 {[%clk 0:00:59]} 36. gxf4 {[%clk 0:00:15]}  e4 {[%clk 0:00:59]} 37. h4 {[%clk 0:00:13]}  axb4 {[%clk 0:00:59]} 38. cxb4 {[%clk 0:00:12]}  Bxf4 {[%clk 0:00:58]} 39. Re1 {[%clk 0:00:10]}  Bd3+ {[%clk 0:00:54]} 40. Kc3 {[%clk 0:00:09]}  Be5+ {[%clk 0:00:53]} 41. Kb3 {[%clk 0:00:07]}  f4 {[%clk 0:00:52]} 42. a4 {[%clk 0:00:07]}  bxa4+ {[%clk 0:00:52]} 43. Kxa4 {[%clk 0:00:08]}  f3 {[%clk 0:00:53]} 44. b5 {[%clk 0:00:04]}  f2 {[%clk 0:00:52]} 45. Rc1 {[%clk 0:00:02]}  f1=Q {[%clk 0:00:49]} 46. Rxf1 {[%clk 0:00:02]}  Bxf1 {[%clk 0:00:50]} 47. b6 {[%clk 0:00:03]}  e3 {[%clk 0:00:49]} 48. b7 {[%clk 0:00:03]}  e2 {[%clk 0:00:50]} 49. b8=Q {[%clk 0:00:03]}  Bxb8 {[%clk 0:00:49]} 0-1


[Site "https://www.chess.com"]